[Event "Early-Titled-Tuesday-Blitz-November-28-2023"]
[Site "Chess.com"]
[Date "2023.11.28"]
[Round "8"]
[White "Arimin1329"]
[Black "Maxfan2008"]
[Result "1-0"]
[WhiteElo "2400"]
[BlackElo "2526"]
[TimeControl "180+1"]
[EndTime "9:35:13 PST"]
[Termination "Arimin1329 won on time"]

1. Nf3 {[%clk 0:03:00.9]} 1... d5 {[%clk 0:02:59.6]} 2. g3 {[%clk 0:02:58.5]}
2... Bg4 {[%clk 0:02:59.2]} 3. Bg2 {[%clk 0:02:56.8]} 3... Nd7 {[%clk
0:02:58.8]} 4. d4 {[%clk 0:02:55]} 4... e6 {[%clk 0:02:56.9]} 5. b3 {[%clk
0:02:54.7]} 5... Ngf6 {[%clk 0:02:56.4]} 6. Bb2 {[%clk 0:02:54.9]} 6... c5
{[%clk 0:02:56.7]} 7. Nbd2 {[%clk 0:02:54.7]} 7... Rc8 {[%clk 0:02:55.3]} 8. O-O
{[%clk 0:02:54.5]} 8... cxd4 {[%clk 0:02:54.8]} 9. Nxd4 {[%clk 0:02:53.6]} 9...
Bc5 {[%clk 0:02:42.1]} 10. c4 {[%clk 0:02:49]} 10... e5 {[%clk 0:02:31.1]} 11.
Nb5 {[%clk 0:02:47.6]} 11... a6 {[%clk 0:02:19.6]} 12. Nc3 {[%clk 0:02:46.5]}
12... d4 {[%clk 0:02:19]} 13. Nce4 {[%clk 0:02:45.3]} 13... Nxe4 {[%clk
0:02:18.3]} 14. Nxe4 {[%clk 0:02:41.3]} 14... Be7 {[%clk 0:02:16.2]} 15. h3
{[%clk 0:02:21.2]} 15... Bh5 {[%clk 0:02:13.7]} 16. g4 {[%clk 0:02:07.1]} 16...
Bg6 {[%clk 0:02:12.6]} 17. f4 {[%clk 0:02:00.7]} 17... exf4 {[%clk 0:01:54.3]}
18. Qxd4 {[%clk 0:01:53.4]} 18... f6 {[%clk 0:01:23.7]} 19. Nd6+ {[%clk
0:01:40.8]} 19... Kf8 {[%clk 0:01:16.8]} 20. Kh1 {[%clk 0:01:27.2]} 20... f3
{[%clk 0:00:49.7]} 21. Bxf3 {[%clk 0:01:21.6]} 21... Bxd6 {[%clk 0:00:41.6]} 22.
Qxd6+ {[%clk 0:01:22.5]} 22... Qe7 {[%clk 0:00:41.9]} 23. Qxe7+ {[%clk
0:01:20.5]} 23... Kxe7 {[%clk 0:00:42.8]} 24. Bxb7 {[%clk 0:01:20.4]} 24... Rc7
{[%clk 0:00:39.9]} 25. Bxa6 {[%clk 0:01:19.7]} 25... h5 {[%clk 0:00:39.7]} 26.
g5 {[%clk 0:01:15.6]} 26... Be4+ {[%clk 0:00:34.9]} 27. Kh2 {[%clk 0:01:12.9]}
27... fxg5 {[%clk 0:00:32.9]} 28. Bxg7 {[%clk 0:01:02.4]} 28... Rh7 {[%clk
0:00:32.2]} 29. Bc3 {[%clk 0:01:01.3]} 29... g4 {[%clk 0:00:31.5]} 30. Rf4
{[%clk 0:00:54.6]} 30... Nc5 {[%clk 0:00:25.5]} 31. Bb4 {[%clk 0:00:53.5]} 31...
Bg6 {[%clk 0:00:16.3]} 32. Rd1 {[%clk 0:00:44.3]} 32... Ke6 {[%clk 0:00:15.2]}
33. Bb5 {[%clk 0:00:36.1]} 33... Ne4 {[%clk 0:00:13.7]} 34. c5 {[%clk
0:00:24.6]} 34... g3+ {[%clk 0:00:13.7]} 35. Kg1 {[%clk 0:00:23.6]} 35... h4
{[%clk 0:00:14.1]} 36. Bc4+ {[%clk 0:00:23.2]} 36... Ke5 {[%clk 0:00:14.1]} 37.
e3 {[%clk 0:00:20.5]} 37... Rhd7 {[%clk 0:00:10.8]} 38. Rd6 {[%clk 0:00:18.9]}
38... Rxd6 {[%clk 0:00:05.9]} 39. cxd6 {[%clk 0:00:19.8]} 39... Ra7 {[%clk
0:00:05.3]} 40. a4 {[%clk 0:00:17.9]} 40... Ng5 {[%clk 0:00:04.3]} 41. Bc3+
{[%clk 0:00:12.4]} 41... Kxd6 {[%clk 0:00:04.5]} 42. Rg4 {[%clk 0:00:11.6]}
42... Nxh3+ {[%clk 0:00:03.3]} 43. Kg2 {[%clk 0:00:12.2]} 43... Be4+ {[%clk
0:00:02.3]} 44. Rxe4 {[%clk 0:00:11.7]} 1-0

[Event "Early-Titled-Tuesday-Blitz-November-28-2023"]
[Site "Chess.com"]
[Date "2023.11.28"]
[Round "8"]
[White "DeArron_Fox"]
[Black "C_K_G"]
[Result "1-0"]
[WhiteElo "2473"]
[BlackElo "2174"]
[TimeControl "180+1"]
[EndTime "9:35:13 PST"]
[Termination "DeArron_Fox won on time"]

1. d4 {[%clk 0:02:54.3]} 1... d5 {[%clk 0:03:00]} 2. c4 {[%clk 0:02:54.3]} 2...
e6 {[%clk 0:03:00.1]} 3. Nc3 {[%clk 0:02:54.2]} 3... Nf6 {[%clk 0:02:59.4]} 4.
e3 {[%clk 0:02:54.5]} 4... b6 {[%clk 0:02:58.5]} 5. Nf3 {[%clk 0:02:54.1]} 5...
Nbd7 {[%clk 0:02:57.3]} 6. Bd3 {[%clk 0:02:54.2]} 6... Bb7 {[%clk 0:02:57.4]} 7.
O-O {[%clk 0:02:54.7]} 7... a6 {[%clk 0:02:57.2]} 8. b3 {[%clk 0:02:54.9]} 8...
Bd6 {[%clk 0:02:57.2]} 9. Bb2 {[%clk 0:02:55.3]} 9... O-O {[%clk 0:02:57]} 10.
Qc2 {[%clk 0:02:53.2]} 10... h6 {[%clk 0:02:56.2]} 11. e4 {[%clk 0:02:52.6]}
11... dxe4 {[%clk 0:02:56.2]} 12. Nxe4 {[%clk 0:02:53.5]} 12... Nxe4 {[%clk
0:02:56.3]} 13. Bxe4 {[%clk 0:02:54.4]} 13... Bxe4 {[%clk 0:02:55.8]} 14. Qxe4
{[%clk 0:02:55.3]} 14... Nf6 {[%clk 0:02:51.6]} 15. Qe2 {[%clk 0:02:55.3]} 15...
c5 {[%clk 0:02:49.4]} 16. Rfd1 {[%clk 0:02:51.4]} 16... Qe7 {[%clk 0:02:23]} 17.
h3 {[%clk 0:02:44.3]} 17... cxd4 {[%clk 0:02:01.2]} 18. Nxd4 {[%clk 0:02:43.6]}
18... Rac8 {[%clk 0:01:38.4]} 19. Qf3 {[%clk 0:02:37.6]} 19... Be5 {[%clk
0:01:25.5]} 20. Nc6 {[%clk 0:02:27]} 20... Rxc6 {[%clk 0:01:24.7]} 21. Bxe5
{[%clk 0:02:27.5]} 21... Rfc8 {[%clk 0:01:03.8]} 22. Rd3 {[%clk 0:02:26.8]}
22... Nd7 {[%clk 0:00:55.6]} 23. Bb2 {[%clk 0:02:19.6]} 23... Nc5 {[%clk
0:00:49.3]} 24. Rd2 {[%clk 0:02:05.6]} 24... e5 {[%clk 0:00:36.6]} 25. Rad1
{[%clk 0:02:02.3]} 25... Rf6 {[%clk 0:00:26.6]} 26. Qe3 {[%clk 0:01:57.6]} 26...
Re6 {[%clk 0:00:15.9]} 27. Rd5 {[%clk 0:01:39.1]} 27... e4 {[%clk 0:00:14.1]}
28. Bd4 {[%clk 0:01:22.7]} 28... Rg6 {[%clk 0:00:11.3]} 29. Bxc5 {[%clk
0:00:44.5]} 29... Rxc5 {[%clk 0:00:10.7]} 30. Rxc5 {[%clk 0:00:43.8]} 30... bxc5
{[%clk 0:00:10.7]} 31. Rd5 {[%clk 0:00:38.5]} 31... Rg5 {[%clk 0:00:07.4]} 32.
Rxg5 {[%clk 0:00:33.8]} 32... hxg5 {[%clk 0:00:07.1]} 33. Qg3 {[%clk 0:00:24.9]}
33... f5 {[%clk 0:00:06.2]} 34. Qb8+ {[%clk 0:00:22.5]} 34... Kh7 {[%clk
0:00:06.1]} 35. Qc8 {[%clk 0:00:22.7]} 35... f4 {[%clk 0:00:04.2]} 36. Qf5+
{[%clk 0:00:11.4]} 36... Kg8 {[%clk 0:00:03.4]} 37. Qd5+ {[%clk 0:00:10.6]}
37... Kh7 {[%clk 0:00:02.3]} 38. h4 {[%clk 0:00:04.7]} 1-0

[Event "Early-Titled-Tuesday-Blitz-November-28-2023"]
[Site "Chess.com"]
[Date "2023.11.28"]
[Round "8"]
[White "ahkashefi2800"]
[Black "vasblesk"]
[Result "0-1"]
[WhiteElo "2575"]
[BlackElo "2837"]
[TimeControl "180+1"]
[EndTime "9:35:16 PST"]
[Termination "vasblesk won on time"]

1. d4 {[%clk 0:02:58.5]} 1... d5 {[%clk 0:02:59.6]} 2. c4 {[%clk 0:02:56.4]}
2... c6 {[%clk 0:02:59.6]} 3. Nc3 {[%clk 0:02:55.8]} 3... Nf6 {[%clk 0:02:59.5]}
4. cxd5 {[%clk 0:02:55.1]} 4... cxd5 {[%clk 0:02:59.4]} 5. Nf3 {[%clk 0:02:56]}
5... Nc6 {[%clk 0:02:58.9]} 6. Bf4 {[%clk 0:02:55.8]} 6... Bf5 {[%clk
0:02:59.5]} 7. e3 {[%clk 0:02:44.4]} 7... e6 {[%clk 0:02:58.3]} 8. Bd3 {[%clk
0:02:40.7]} 8... Bxd3 {[%clk 0:02:57.6]} 9. Qxd3 {[%clk 0:02:41.6]} 9... Bd6
{[%clk 0:02:57.7]} 10. Bg3 {[%clk 0:02:40]} 10... O-O {[%clk 0:02:56.3]} 11. Rc1
{[%clk 0:02:39.1]} 11... a6 {[%clk 0:02:45.9]} 12. a3 {[%clk 0:02:38.1]} 12...
Na5 {[%clk 0:02:43.8]} 13. Ne5 {[%clk 0:02:36.4]} 13... Rc8 {[%clk 0:02:41.1]}
14. O-O {[%clk 0:02:34.3]} 14... Nh5 {[%clk 0:02:34.9]} 15. Nf3 {[%clk
0:01:50.6]} 15... Nxg3 {[%clk 0:02:28.3]} 16. hxg3 {[%clk 0:01:51.5]} 16... Nb3
{[%clk 0:02:08.7]} 17. Rc2 {[%clk 0:01:49.8]} 17... Qc7 {[%clk 0:02:07.5]} 18.
Nd2 {[%clk 0:01:46.9]} 18... Nxd2 {[%clk 0:02:02.8]} 19. Qxd2 {[%clk 0:01:45.8]}
19... b5 {[%clk 0:02:01.8]} 20. Rfc1 {[%clk 0:01:46]} 20... Qb7 {[%clk 0:02:02]}
21. b4 {[%clk 0:01:40]} 21... Rc4 {[%clk 0:02:00.4]} 22. Nd1 {[%clk 0:01:38.4]}
22... a5 {[%clk 0:01:57.6]} 23. Nb2 {[%clk 0:01:38.9]} 23... Rxc2 {[%clk
0:01:57]} 24. Rxc2 {[%clk 0:01:38.5]} 24... axb4 {[%clk 0:01:57]} 25. axb4
{[%clk 0:01:38.4]} 25... Rc8 {[%clk 0:01:57.2]} 26. Nd3 {[%clk 0:01:28.9]} 26...
Rc4 {[%clk 0:01:47.1]} 27. Nc5 {[%clk 0:01:28]} 27... Qc8 {[%clk 0:01:31.8]} 28.
Ra2 {[%clk 0:01:27.5]} 28... h5 {[%clk 0:01:16.4]} 29. Qb2 {[%clk 0:01:23.5]}
29... e5 {[%clk 0:01:07.2]} 30. Qa1 {[%clk 0:00:53.8]} 30... Qf5 {[%clk
0:01:03]} 31. Rd2 {[%clk 0:00:39.7]} 31... exd4 {[%clk 0:00:48.7]} 32. Rxd4
{[%clk 0:00:33.5]} 32... Be5 {[%clk 0:00:19.4]} 33. Qa8+ {[%clk 0:00:22.3]}
33... Kh7 {[%clk 0:00:15.8]} 34. Qxd5 {[%clk 0:00:21.5]} 34... Rc1+ {[%clk
0:00:06.4]} 35. Kh2 {[%clk 0:00:20.6]} 35... Qxf2 {[%clk 0:00:06.2]} 36. Rd1
{[%clk 0:00:01.9]} 36... Qxg3+ {[%clk 0:00:05.2]} 37. Kg1 {[%clk 0:00:02.2]}
37... Qxe3+ {[%clk 0:00:05.3]} 38. Kh1 {[%clk 0:00:02.4]} 38... Qe1+ {[%clk
0:00:04.3]} 0-1

[Event "Early-Titled-Tuesday-Blitz-November-28-2023"]
[Site "Chess.com"]
[Date "2023.11.28"]
[Round "8"]
[White "Me_ch_an"]
[Black "Ezov"]
[Result "1-0"]
[WhiteElo "2320"]
[BlackElo "2212"]
[TimeControl "180+1"]
[EndTime "9:35:17 PST"]
[Termination "Me_ch_an won by checkmate"]

1. e4 {[%clk 0:02:56.2]} 1... e6 {[%clk 0:02:58.2]} 2. d4 {[%clk 0:02:55.8]}
2... d5 {[%clk 0:02:59.1]} 3. e5 {[%clk 0:02:55.8]} 3... c5 {[%clk 0:02:58.3]}
4. c3 {[%clk 0:02:56.2]} 4... Nc6 {[%clk 0:02:59.2]} 5. g3 {[%clk 0:02:56.1]}
5... h5 {[%clk 0:02:58]} 6. Bh3 {[%clk 0:02:48.3]} 6... h4 {[%clk 0:02:56.6]} 7.
g4 {[%clk 0:02:48.2]} 7... Qb6 {[%clk 0:02:52.9]} 8. Ne2 {[%clk 0:02:45.8]} 8...
f6 {[%clk 0:02:46.1]} 9. f4 {[%clk 0:02:41.1]} 9... cxd4 {[%clk 0:02:41.5]} 10.
cxd4 {[%clk 0:02:38.7]} 10... Bb4+ {[%clk 0:02:40.1]} 11. Nbc3 {[%clk
0:02:37.6]} 11... Nge7 {[%clk 0:02:36.3]} 12. Be3 {[%clk 0:02:35.9]} 12... fxe5
{[%clk 0:02:31.1]} 13. fxe5 {[%clk 0:02:28.1]} 13... Nxe5 {[%clk 0:02:29.1]} 14.
O-O {[%clk 0:02:27.4]} 14... Nc4 {[%clk 0:02:26.5]} 15. Qd3 {[%clk 0:02:25.3]}
15... Nxb2 {[%clk 0:02:21.9]} 16. Qc2 {[%clk 0:02:16.2]} 16... Nc4 {[%clk
0:02:21.3]} 17. Bg5 {[%clk 0:02:15.8]} 17... Bd7 {[%clk 0:02:09.5]} 18. Rad1
{[%clk 0:01:58.3]} 18... Bxc3 {[%clk 0:01:52]} 19. Nxc3 {[%clk 0:01:52.9]} 19...
Qb2 {[%clk 0:01:49.4]} 20. Qd3 {[%clk 0:01:47.4]} 20... Qb6 {[%clk 0:01:32.4]}
21. Bxe7 {[%clk 0:01:35]} 21... Kxe7 {[%clk 0:01:31.4]} 22. Qg6 {[%clk 0:01:33]}
22... Rae8 {[%clk 0:01:09]} 23. Qg5+ {[%clk 0:01:05.6]} 23... Kd6 {[%clk
0:01:02.6]} 24. Rf7 {[%clk 0:00:56.6]} 24... Rhg8 {[%clk 0:00:52]} 25. Qf4+
{[%clk 0:00:10.9]} 25... Kc6 {[%clk 0:00:47.4]} 26. Na4 {[%clk 0:00:10.8]} 26...
Qc7 {[%clk 0:00:36.4]} 27. Qf2 {[%clk 0:00:06]} 27... b6 {[%clk 0:00:30.1]} 28.
g5 {[%clk 0:00:05.7]} 28... Kb5 {[%clk 0:00:20.1]} 29. Nc3+ {[%clk 0:00:03.8]}
29... Ka6 {[%clk 0:00:19.6]} 30. Nxd5 {[%clk 0:00:04.2]} 30... Qd6 {[%clk
0:00:10]} 31. Ne3 {[%clk 0:00:02.4]} 31... Nxe3 {[%clk 0:00:08.1]} 32. Qxe3
{[%clk 0:00:03.3]} 32... Bc6 {[%clk 0:00:07.4]} 33. Bf1+ {[%clk 0:00:03.3]}
33... b5 {[%clk 0:00:06.8]} 34. Qb3 {[%clk 0:00:02]} 34... Qd5 {[%clk
0:00:06.3]} 35. Qb4 {[%clk 0:00:02]} 35... Qh1+ {[%clk 0:00:04.9]} 36. Kf2
{[%clk 0:00:02.5]} 36... Rgf8 {[%clk 0:00:04.8]} 37. Qa3+ {[%clk 0:00:02]} 37...
Kb6 {[%clk 0:00:05]} 38. Qxa7# {[%clk 0:00:02.8]} 1-0

[Event "Early-Titled-Tuesday-Blitz-November-28-2023"]
[Site "Chess.com"]
[Date "2023.11.28"]
[Round "8"]
[White "JoliyRoger"]
[Black "RebecaJimnz"]
[Result "1-0"]
[WhiteElo "2493"]
[BlackElo "2306"]
[TimeControl "180+1"]
[EndTime "9:35:19 PST"]
[Termination "JoliyRoger won by resignation"]

1. Nf3 {[%clk 0:02:29.3]} 1... Nf6 {[%clk 0:02:58.4]} 2. d4 {[%clk 0:02:27.3]}
2... d5 {[%clk 0:02:59]} 3. c4 {[%clk 0:02:27]} 3... e6 {[%clk 0:02:59.6]} 4. e3
{[%clk 0:02:27.6]} 4... c6 {[%clk 0:02:59.8]} 5. Nc3 {[%clk 0:02:26.4]} 5...
Nbd7 {[%clk 0:03:00.4]} 6. b3 {[%clk 0:02:26.8]} 6... Bd6 {[%clk 0:02:59.7]} 7.
Bb2 {[%clk 0:02:27.5]} 7... O-O {[%clk 0:03:00.3]} 8. Qc2 {[%clk 0:02:28]} 8...
Qe7 {[%clk 0:02:58.2]} 9. Bd3 {[%clk 0:02:28.3]} 9... dxc4 {[%clk 0:02:58]} 10.
bxc4 {[%clk 0:02:28.2]} 10... e5 {[%clk 0:02:58.5]} 11. O-O {[%clk 0:02:28.4]}
11... Re8 {[%clk 0:02:51.5]} 12. Ng5 {[%clk 0:02:28.9]} 12... h6 {[%clk
0:02:44.7]} 13. Nge4 {[%clk 0:02:29.3]} 13... Nxe4 {[%clk 0:02:32.1]} 14. Nxe4
{[%clk 0:02:29.3]} 14... Bc7 {[%clk 0:02:31.1]} 15. d5 {[%clk 0:02:25.1]} 15...
cxd5 {[%clk 0:02:27]} 16. cxd5 {[%clk 0:02:24.6]} 16... Nb6 {[%clk 0:02:22.9]}
17. Nc3 {[%clk 0:02:11.9]} 17... Bd7 {[%clk 0:02:00.9]} 18. e4 {[%clk
0:02:09.7]} 18... Rac8 {[%clk 0:01:59.6]} 19. Rac1 {[%clk 0:02:06.8]} 19... Bd6
{[%clk 0:01:57.1]} 20. Qe2 {[%clk 0:02:03.3]} 20... Ba3 {[%clk 0:01:46.3]} 21.
h3 {[%clk 0:01:57.8]} 21... Rc7 {[%clk 0:01:04.6]} 22. Nb1 {[%clk 0:00:57.6]}
22... Rxc1 {[%clk 0:00:59.2]} 23. Rxc1 {[%clk 0:00:56.5]} 23... Bxb2 {[%clk
0:00:50.9]} 24. Qxb2 {[%clk 0:00:56.6]} 24... Rc8 {[%clk 0:00:47.2]} 25. Nd2
{[%clk 0:00:49.1]} 25... Na4 {[%clk 0:00:35.8]} 26. Rxc8+ {[%clk 0:00:48.2]}
26... Bxc8 {[%clk 0:00:36.4]} 27. Qc2 {[%clk 0:00:42]} 27... Nc5 {[%clk
0:00:17.6]} 28. Nb3 {[%clk 0:00:38.5]} 28... Nxd3 {[%clk 0:00:17.1]} 29. Qxc8+
{[%clk 0:00:35]} 29... Kh7 {[%clk 0:00:17.5]} 30. Qc3 {[%clk 0:00:27.4]} 30...
Nf4 {[%clk 0:00:17.5]} 31. Kh2 {[%clk 0:00:23.5]} 31... Qg5 {[%clk 0:00:16.2]}
32. g3 {[%clk 0:00:22.2]} 32... Ne2 {[%clk 0:00:14.9]} 33. Qd3 {[%clk
0:00:19.1]} 33... Nc1 {[%clk 0:00:10.8]} 34. Nxc1 {[%clk 0:00:18.6]} 34... Qxc1
{[%clk 0:00:11.7]} 35. d6 {[%clk 0:00:13.8]} 35... Qb2 {[%clk 0:00:09.4]} 36.
Kg2 {[%clk 0:00:11.2]} 36... Qb6 {[%clk 0:00:07.4]} 37. Qd5 {[%clk 0:00:08.9]}
37... f6 {[%clk 0:00:06.7]} 38. Qe6 {[%clk 0:00:08.5]} 38... Qd4 {[%clk
0:00:05.8]} 39. Qf5+ {[%clk 0:00:07.9]} 39... Kg8 {[%clk 0:00:06.2]} 40. d7
{[%clk 0:00:08.2]} 40... Kf8 {[%clk 0:00:06.6]} 41. Qe6 {[%clk 0:00:07.2]} 41...
Qxe4+ {[%clk 0:00:06.6]} 42. Kh2 {[%clk 0:00:06.2]} 42... Qg6 {[%clk 0:00:02.5]}
43. d8=Q+ {[%clk 0:00:06.2]} 1-0

[Event "Early-Titled-Tuesday-Blitz-November-28-2023"]
[Site "Chess.com"]
[Date "2023.11.28"]
[Round "8"]
[White "Qvalda"]
[Black "M1711"]
[Result "0-1"]
[WhiteElo "2432"]
[BlackElo "2609"]
[TimeControl "180+1"]
[EndTime "9:35:22 PST"]
[Termination "M1711 won on time"]

1. Nf3 {[%clk 0:03:00.9]} 1... d5 {[%clk 0:02:54.4]} 2. g3 {[%clk 0:03:01.1]}
2... Nd7 {[%clk 0:02:45.4]} 3. d4 {[%clk 0:03:00.2]} 3... b5 {[%clk 0:02:43.2]}
4. e3 {[%clk 0:02:51.2]} 4... a6 {[%clk 0:02:39.8]} 5. a4 {[%clk 0:02:49.6]}
5... b4 {[%clk 0:02:39.1]} 6. a5 {[%clk 0:02:49.5]} 6... e6 {[%clk 0:02:38.2]}
7. Nbd2 {[%clk 0:02:45.3]} 7... c5 {[%clk 0:02:36.7]} 8. dxc5 {[%clk 0:02:43.3]}
8... Nxc5 {[%clk 0:02:36.6]} 9. Bg2 {[%clk 0:02:42.8]} 9... Nf6 {[%clk
0:02:36.6]} 10. O-O {[%clk 0:02:41.8]} 10... Bd6 {[%clk 0:02:35.3]} 11. c4
{[%clk 0:02:28.7]} 11... bxc3 {[%clk 0:02:33.2]} 12. bxc3 {[%clk 0:02:29.6]}
12... Bb7 {[%clk 0:02:31.8]} 13. c4 {[%clk 0:02:29.2]} 13... O-O {[%clk
0:02:29]} 14. Bb2 {[%clk 0:02:17.1]} 14... Rb8 {[%clk 0:02:09.9]} 15. Bd4 {[%clk
0:02:03.1]} 15... Qe7 {[%clk 0:02:01.1]} 16. cxd5 {[%clk 0:01:56.1]} 16... Bxd5
{[%clk 0:01:59.8]} 17. Qe2 {[%clk 0:01:51]} 17... Nfd7 {[%clk 0:01:30.6]} 18. e4
{[%clk 0:01:47.3]} 18... Ba8 {[%clk 0:01:30.8]} 19. e5 {[%clk 0:01:43.1]} 19...
Bc7 {[%clk 0:01:30.9]} 20. Rfc1 {[%clk 0:01:40]} 20... Rb5 {[%clk 0:01:29.1]}
21. Bc3 {[%clk 0:01:19.4]} 21... Rbb8 {[%clk 0:00:58.9]} 22. Rab1 {[%clk
0:01:07.1]} 22... Bd5 {[%clk 0:00:50]} 23. Bb4 {[%clk 0:00:52.8]} 23... Rfc8
{[%clk 0:00:44]} 24. Ba3 {[%clk 0:00:50.4]} 24... Bxa5 {[%clk 0:00:36.9]} 25.
Rxb8 {[%clk 0:00:45.6]} 25... Rxb8 {[%clk 0:00:35.5]} 26. Qxa6 {[%clk
0:00:31.8]} 26... Nxa6 {[%clk 0:00:11.6]} 27. Bxe7 {[%clk 0:00:32.3]} 27... Nxe5
{[%clk 0:00:07.4]} 28. Nxe5 {[%clk 0:00:23.6]} 28... Bxd2 {[%clk 0:00:07.4]} 29.
Rd1 {[%clk 0:00:19.6]} 29... Bxg2 {[%clk 0:00:07.5]} 30. Rxd2 {[%clk 0:00:15.4]}
30... Bd5 {[%clk 0:00:05.7]} 31. Rd1 {[%clk 0:00:10.4]} 31... f6 {[%clk
0:00:05.8]} 32. Nd3 {[%clk 0:00:09.3]} 32... Rc8 {[%clk 0:00:04.8]} 33. Rc1
{[%clk 0:00:08]} 33... Rxc1+ {[%clk 0:00:04.1]} 34. Nxc1 {[%clk 0:00:08.9]}
34... Kf7 {[%clk 0:00:04.7]} 35. Ba3 {[%clk 0:00:08.8]} 35... e5 {[%clk
0:00:04.7]} 36. Kf1 {[%clk 0:00:07.7]} 36... Nc7 {[%clk 0:00:05]} 37. Ke2 {[%clk
0:00:07.4]} 37... Nb5 {[%clk 0:00:04.9]} 38. Bb2 {[%clk 0:00:08]} 38... Ke6
{[%clk 0:00:03.8]} 39. Ke3 {[%clk 0:00:08.5]} 39... g5 {[%clk 0:00:03.4]} 40.
Ne2 {[%clk 0:00:08.1]} 40... Bc4 {[%clk 0:00:03]} 41. Nc3 {[%clk 0:00:07.2]}
41... Nd6 {[%clk 0:00:03.4]} 42. Ne4 {[%clk 0:00:05.7]} 42... Nf5+ {[%clk
0:00:03.6]} 43. Kf3 {[%clk 0:00:04]} 43... Bd5 {[%clk 0:00:03.9]} 44. Ba3 {[%clk
0:00:02.2]} 44... h5 {[%clk 0:00:02.6]} 0-1

[Event "Early-Titled-Tuesday-Blitz-November-28-2023"]
[Site "Chess.com"]
[Date "2023.11.28"]
[Round "8"]
[White "Ariadna_Atreides"]
[Black "maurovargas01"]
[Result "1-0"]
[WhiteElo "2195"]
[BlackElo "1850"]
[TimeControl "180+1"]
[EndTime "9:35:23 PST"]
[Termination "Ariadna_Atreides won on time"]

1. d4 {[%clk 0:03:00.9]} 1... d5 {[%clk 0:02:57]} 2. Nf3 {[%clk 0:03:01.3]} 2...
e6 {[%clk 0:02:54.2]} 3. e3 {[%clk 0:03:01.2]} 3... c6 {[%clk 0:02:54.3]} 4. Bd3
{[%clk 0:03:00.8]} 4... Bd6 {[%clk 0:02:55]} 5. Nbd2 {[%clk 0:02:56.9]} 5... Nf6
{[%clk 0:02:55]} 6. b3 {[%clk 0:02:56.7]} 6... Bc7 {[%clk 0:02:55.1]} 7. Bb2
{[%clk 0:02:56.7]} 7... Qd6 {[%clk 0:02:54]} 8. Ne5 {[%clk 0:02:49.4]} 8... Nbd7
{[%clk 0:02:52.6]} 9. a4 {[%clk 0:02:40.6]} 9... b6 {[%clk 0:02:48.2]} 10. Ndf3
{[%clk 0:02:35.1]} 10... c5 {[%clk 0:02:47]} 11. O-O {[%clk 0:02:17.9]} 11...
O-O {[%clk 0:02:46.4]} 12. Nxd7 {[%clk 0:01:55.3]} 12... Bxd7 {[%clk 0:02:42.1]}
13. dxc5 {[%clk 0:01:51.5]} 13... bxc5 {[%clk 0:02:41.4]} 14. Be5 {[%clk
0:01:46.7]} 14... Qc6 {[%clk 0:02:39.1]} 15. Bb5 {[%clk 0:01:44.3]} 15... Qb6
{[%clk 0:02:34.1]} 16. Bxc7 {[%clk 0:01:17.3]} 16... Qxc7 {[%clk 0:02:32.3]} 17.
Bxd7 {[%clk 0:01:15.3]} 17... Qxd7 {[%clk 0:02:30.8]} 18. c4 {[%clk 0:01:14.1]}
18... Rfd8 {[%clk 0:02:27.4]} 19. cxd5 {[%clk 0:01:13.2]} 19... exd5 {[%clk
0:02:26.1]} 20. Rc1 {[%clk 0:01:12]} 20... Rac8 {[%clk 0:02:25.6]} 21. Qd3
{[%clk 0:01:07.1]} 21... h6 {[%clk 0:02:15.2]} 22. h3 {[%clk 0:01:06.4]} 22...
Qe6 {[%clk 0:02:14.5]} 23. Rfd1 {[%clk 0:00:59.8]} 23... Ne4 {[%clk 0:01:54.2]}
24. Nd2 {[%clk 0:00:46.6]} 24... Nf6 {[%clk 0:01:31]} 25. Qb5 {[%clk 0:00:43]}
25... Qb6 {[%clk 0:01:13.1]} 26. Qe2 {[%clk 0:00:36.9]} 26... Re8 {[%clk
0:01:04.5]} 27. Qf3 {[%clk 0:00:33.1]} 27... Qe6 {[%clk 0:00:59.1]} 28. Rc2
{[%clk 0:00:29.4]} 28... d4 {[%clk 0:00:58.6]} 29. exd4 {[%clk 0:00:24.2]} 29...
cxd4 {[%clk 0:00:54.3]} 30. Rxc8 {[%clk 0:00:23.8]} 30... Rxc8 {[%clk
0:00:53.8]} 31. Nc4 {[%clk 0:00:24.4]} 31... Rd8 {[%clk 0:00:50.6]} 32. Qd3
{[%clk 0:00:09.9]} 32... Qd5 {[%clk 0:00:47.7]} 33. Kf1 {[%clk 0:00:04.5]} 33...
Ne4 {[%clk 0:00:43]} 34. Re1 {[%clk 0:00:04.2]} 34... Nc3 {[%clk 0:00:41.4]} 35.
Rc1 {[%clk 0:00:02.9]} 35... Qg5 {[%clk 0:00:31.1]} 36. Re1 {[%clk 0:00:02.9]}
36... Kh8 {[%clk 0:00:08]} 37. Nd2 {[%clk 0:00:03.4]} 37... Qf6 {[%clk
0:00:03.9]} 38. b4 {[%clk 0:00:03.3]} 38... Nxa4 {[%clk 0:00:02.9]} 39. Nf3
{[%clk 0:00:03.5]} 39... Nb6 {[%clk 0:00:02.8]} 40. Ra1 {[%clk 0:00:03.1]} 1-0